bitfinex/quotes_BTCUSD_20251102
["timestamp","ask_amount","ask_price","bid_price","bid_amount"]
[1762061804686,6.09159027,110600.0,110590.0,0.00664433]
[1762061804928,6.27242209,110600.0,110590.0,0.00664433]
[1762061806497,1.36857869,110580.0,110570.0,0.18088088]
[1762061806704,1.80753729,110580.0,110570.0,0.18088088]
[1762061806907,1.79061701,110580.0,110570.0,0.18088088]
[1762061807115,1.81493701,110580.0,110570.0,0.18088088]
[1762061807788,1.81493701,110580.0,110570.0,0.18136456]
[1762061809322,1.81493701,110580.0,110570.0,0.18236456]
[1762061809972,1.99580154,110580.0,110570.0,0.00148368]
[1762061810178,1.8318492,110580.0,110570.0,0.00148368]
[1762061810383,1.8328492,110580.0,110570.0,0.00148368]
[1762061811023,1.8318492,110580.0,110570.0,0.00148368]
[1762061811250,1.8328492,110580.0,110570.0,0.00148368]
[1762061812071,1.8328492,110580.0,110570.0,0.00192297]
[1762061812698,1.8318492,110580.0,110570.0,0.00192297]
[1762061813672,2.31119444,110580.0,110570.0,0.00192297]
[1762061813874,6.50234365,110580.0,110570.0,0.00192297]
[1762061814219,6.41252464,110580.0,110570.0,0.00192297]
[1762061814631,6.41252464,110580.0,110570.0,0.00092297]
[1762061815051,6.41452464,110580.0,110570.0,0.00092297]
[1762061815465,6.42352464,110580.0,110570.0,0.00092297]
[1762061815647,6.45252834,110580.0,110570.0,0.00092297]
[1762061816488,6.54234735,110580.0,110570.0,0.00092297]
[1762061817291,6.54234649,110580.0,110570.0,0.00092297]
[1762061817496,6.51798989,110580.0,110570.0,0.00092297]
[1762061817698,6.42817088,110580.0,110570.0,0.00092297]
[1762061819329,6.42452464,110580.0,110570.0,0.00092297]
[1762061820212,6.43871456,110580.0,110570.0,0.00092297]
[1762061820412,6.44235958,110580.0,110570.0,0.00092297]
[1762061820716,6.43871456,110580.0,110570.0,0.00092297]
[1762061822386,6.41923852,110580.0,110570.0,0.00092297]
[1762061822601,6.43870196,110580.0,110570.0,0.00092297]
[1762061823215,6.44234766,110580.0,110570.0,0.00092297]
[1762061825962,6.44233831,110580.0,110570.0,0.00092297]
[1762061828315,6.26147378,110580.0,110570.0,0.00092297]
[1762061828493,6.23024156,110580.0,110570.0,0.00092297]
[1762061828840,6.41110609,110580.0,110570.0,0.00092297]
[1762061829086,6.23024156,110580.0,110570.0,0.00092297]
[1762061829321,6.23124156,110580.0,110570.0,0.00092297]
[1762061829585,6.23024156,110580.0,110570.0,0.00092297]
[1762061831882,5.05801607,110580.0,110570.0,0.00092297]
[1762061832066,5.04382615,110580.0,110570.0,0.00092297]
[1762061832819,5.10432846,110580.0,110570.0,0.00092297]
[1762061833430,4.71618055,110580.0,110570.0,0.00092297]
[1762061833637,4.71518055,110580.0,110570.0,0.00092297]
[1762061836126,4.68265531,110580.0,110570.0,0.00092297]
[1762061836341,4.48265531,110580.0,110570.0,0.18180385]
[1762061836554,4.68265531,110580.0,110570.0,0.18180385]
[1762061837193,4.48265531,110580.0,110570.0,0.18180385]
[1762061837852,4.28265531,110580.0,110570.0,0.18180385]
[1762061838039,1.48265531,110580.0,110570.0,0.18180385]
[1762061839412,1.28265531,110580.0,110570.0,0.18180385]
[1762061839622,1.48265531,110580.0,110570.0,0.18180385]
[1762061846573,1.09294595,110580.0,110570.0,0.18180385]
[1762061848024,1.48266134,110580.0,110570.0,0.18180385]
[1762061855240,0.70323056,110580.0,110570.0,0.18180385]
[1762061855451,1.48266134,110580.0,110570.0,0.18180385]
[1762061857563,1.49684966,110580.0,110570.0,0.18180385]
[1762061859894,1.49684966,110580.0,110570.0,0.00092297]
[1762061860102,4.75960712,110580.0,110570.0,0.18180385]
[1762061861773,4.74270538,110580.0,110570.0,0.18180385]
[1762061861974,4.75964095,110580.0,110570.0,0.18180385]
[1762061863068,4.75964095,110580.0,110570.0,0.00092297]
[1762061863855,4.75964095,110580.0,110570.0,0.18180385]
[1762061864390,4.74545263,110580.0,110570.0,0.18180385]
[1762061867034,4.74545694,110580.0,110570.0,0.18180385]
[1762061867460,4.71522472,110580.0,110570.0,0.18180385]
[1762061868806,4.68269948,110580.0,110570.0,0.18180385]
[1762061868966,4.68269948,110580.0,110570.0,0.00092297]
[1762061869169,5.00747288,110580.0,110570.0,0.00092297]
[1762061869546,5.00847288,110580.0,110570.0,0.00092297]
[1762061869896,5.03999812,110580.0,110570.0,0.00092297]
[1762061870767,5.04099812,110580.0,110570.0,0.00092297]
[1762061872228,4.95117911,110580.0,110570.0,0.00092297]
[1762061873909,4.92684981,110580.0,110570.0,0.00092297]
[1762061875388,4.94104007,110580.0,110570.0,0.00092297]
[1762061877163,4.96442971,110580.0,110570.0,0.00092297]
[1762061877606,4.97962096,110580.0,110570.0,0.00092297]
[1762061877941,4.96542971,110580.0,110570.0,0.00092297]
[1762061878121,4.95642971,110580.0,110570.0,0.00092297]
[1762061878751,4.95542971,110580.0,110570.0,0.00092297]
[1762061878945,5.04272865,110580.0,110570.0,0.00092297]
[1762061879184,4.96542971,110580.0,110570.0,0.00092297]
[1762061879410,5.3551451,110580.0,110570.0,0.00092297]
[1762061879643,4.96542971,110580.0,110570.0,0.00092297]
[1762061880373,4.94104007,110580.0,110570.0,0.00092297]
[1762061880649,4.96543128,110580.0,110570.0,0.00092297]
[1762061880861,4.94104007,110580.0,110570.0,0.00092297]
[1762061881307,4.9813911,110580.0,110570.0,0.00092297]
[1762061881520,5.33075546,110580.0,110570.0,0.00092297]
[1762061884045,0.01664,110540.0,110530.0,0.18333304]
[1762061884249,0.41581539,110540.0,110530.0,0.18347768]
[1762061884466,0.44038539,110540.0,110530.0,0.18347768]
[1762061885319,0.44927764,110540.0,110530.0,0.18947768]
[1762061885991,0.44927764,110540.0,110530.0,0.20047768]
[1762061889675,0.44927764,110540.0,110530.0,0.20135664]
[1762061894574,0.44927764,110540.0,110530.0,0.19535664]
[1762061894771,0.48545992,110540.0,110530.0,0.19696994]
[1762061895130,0.48545992,110540.0,110530.0,0.18596994]
[1762061895343,0.48545992,110540.0,110530.0,0.19296994]
[1762061895548,0.87552449,110540.0,110530.0,0.19296994]
[1762061899508,0.87552449,110540.0,110530.0,0.18596994]
[1762061899788,0.87552449,110540.0,110530.0,0.18196994]
[1762061899990,0.87552449,110540.0,110530.0,0.18596994]
[1762061900142,0.87552449,110540.0,110530.0,0.18896994]
[1762061905534,0.87552449,110540.0,110530.0,0.0080236]
[1762061907141,4.83564669,110540.0,110530.0,0.0080236]
[1762061907473,5.01657667,110540.0,110530.0,0.0080236]
[1762061908059,5.01757667,110540.0,110530.0,0.0080236]
[1762061908466,5.01757667,110540.0,110530.0,0.0040236]
[1762061908715,5.01957667,110540.0,110530.0,0.0010236]
[1762061909351,5.02057667,110540.0,110530.0,0.0010236]
[1762061909762,5.03477066,110540.0,110530.0,0.0010236]
[1762061910288,5.03377066,110540.0,110530.0,0.0010236]
[1762061910496,5.03477066,110540.0,110530.0,0.0010236]
[1762061910895,5.12458967,110540.0,110530.0,0.0010236]
[1762061911628,6.31811725,110540.0,110530.0,0.0010236]
[1762061911845,6.36482287,110540.0,110530.0,0.0010236]
[1762061912025,5.5950429,110540.0,110530.0,0.0010236]
[1762061912236,5.61196801,110540.0,110530.0,0.0010236]
[1762061912451,5.5950429,110540.0,110530.0,0.0010236]
[1762061912671,6.28500385,110540.0,110530.0,0.0010236]
[1762061912876,6.31612301,110540.0,110530.0,0.0010236]
[1762061913289,6.29920139,110540.0,110530.0,0.0010236]
[1762061913709,6.29720139,110540.0,110530.0,0.0010236]
[1762061914119,6.30320139,110540.0,110530.0,0.0010236]
[1762061914330,6.3930204,110540.0,110530.0,0.0010236]
[1762061914538,6.38302041,110540.0,110530.0,0.0010236]
[1762061914736,6.4511677,110540.0,110530.0,0.0010236]
[1762061914940,6.46016769,110540.0,110530.0,0.0010236]
[1762061915151,6.44797015,110540.0,110530.0,0.0010236]
[1762061915577,6.55332014,110540.0,110530.0,0.0010236]
[1762061915779,6.57023341,110540.0,110530.0,0.0010236]
[1762061916165,0.75812862,110530.0,110520.0,0.0004]
[1762061916363,4.35960516,110530.0,110520.0,0.0005447]
[1762061916748,4.36323363,110530.0,110520.0,0.0005447]
[1762061917318,4.34373594,110530.0,110520.0,0.0005447]
[1762061917529,4.35073594,110530.0,110520.0,0.0005447]
[1762061917711,4.44608594,110530.0,110520.0,0.0005447]
[1762061917943,4.35073594,110530.0,110520.0,0.0005447]
[1762061918684,6.30018584,110530.0,110520.0,0.0005447]
[1762061918915,6.30318584,110530.0,110520.0,0.0005447]
[1762061919675,0.661245,110520.0,110510.0,0.0004]
[1762061919876,6.52323509,110520.0,110510.0,0.00054407]
[1762061920105,6.61207502,110520.0,110510.0,0.00054407]
[1762061920306,6.6262744,110520.0,110510.0,0.00054407]
[1762061920473,6.62990314,110520.0,110510.0,0.00054407]
[1762061921273,6.66225101,110520.0,110510.0,0.00054407]
[1762061921615,6.62990314,110520.0,110510.0,0.00054407]
[1762061922010,6.63090314,110520.0,110510.0,0.00054407]
[1762061922464,6.66322346,110520.0,110510.0,0.00054407]
[1762061924224,5.55962331,110520.0,110510.0,0.00054407]
[1762061924446,5.51076523,110520.0,110510.0,0.00054407]
[1762061924936,5.52076522,110520.0,110510.0,0.00054407]
[1762061925658,5.51076523,110520.0,110510.0,0.00054407]
[1762061925890,5.53496529,110520.0,110510.0,0.00054407]
[1762061926180,5.6243484,110520.0,110510.0,0.00054407]
[1762061926384,5.60014834,110520.0,110510.0,0.00054407]
[1762061926609,5.61014833,110520.0,110510.0,0.00054407]
[1762061927026,5.33981375,110520.0,110510.0,0.00098371]
[1762061927236,5.48845615,110520.0,110510.0,0.00098371]
[1762061927440,4.96749343,110520.0,110510.0,0.00098371]
[1762061927641,4.96386469,110520.0,110510.0,0.00098371]
[1762061927851,5.30386469,110520.0,110510.0,0.00098371]
[1762061930217,5.31806294,110520.0,110510.0,0.00098371]
[1762061932359,5.31795755,110520.0,110510.0,0.00098371]
[1762061932564,5.35100372,110520.0,110510.0,0.00098371]
[1762061932786,5.31695755,110520.0,110510.0,0.00098371]
[1762061934454,5.49792027,110520.0,110510.0,0.00098371]
[1762061934697,5.31695755,110520.0,110510.0,0.00098371]
[1762061936262,5.53124059,110520.0,110510.0,0.00098371]
[1762061936460,5.34927787,110520.0,110510.0,0.00098371]
[1762061937182,5.35067901,110520.0,110510.0,0.00098371]
[1762061939512,5.32647813,110520.0,110510.0,0.00098371]
[1762061939843,5.31227988,110520.0,110510.0,0.00098371]
[1762061940388,5.31227988,110520.0,110510.0,0.1819628]
[1762061941049,5.31227988,110520.0,110510.0,0.00098371]
[1762061941511,5.36113796,110520.0,110510.0,0.00098371]
[1762061941752,5.31227988,110520.0,110510.0,0.1819628]
[1762061942157,5.31227988,110520.0,110510.0,0.00098371]
[1762061942360,5.36113796,110520.0,110510.0,0.00098371]
[1762061942975,5.37533606,110520.0,110510.0,0.00098371]
[1762061943388,5.37533606,110520.0,110510.0,0.1819628]
[1762061944222,5.37533606,110520.0,110510.0,0.00098371]
[1762061945424,0.3647,110510.0,110500.0,0.13229535]
[1762061945636,1.26543704,110510.0,110500.0,0.13229535]
[1762061945799,1.26542297,110510.0,110500.0,0.13229535]
[1762061945999,1.26542297,110510.0,110500.0,0.13251521]
[1762061946640,1.26542297,110510.0,110500.0,0.00021986]
[1762061946839,1.26542297,110510.0,110500.0,0.18421533]
[1762061947040,1.26542297,110510.0,110500.0,0.00321986]
[1762061947262,4.24112925,110510.0,110500.0,0.00321986]
[1762061947445,4.28998733,110510.0,110500.0,0.00321986]
[1762061948244,4.2575957,110510.0,110500.0,0.00321986]
[1762061949295,0.23618228,110500.0,110490.0,0.20862245]
[1762061949504,1.13724369,110500.0,110490.0,0.20862245]
[1762061950556,1.13724369,110500.0,110490.0,0.21662245]
[1762061954869,1.13724369,110500.0,110490.0,0.21684234]
[1762061955494,0.7476157,110500.0,110490.0,0.21684234]
[1762061956770,0.7719802,110500.0,110490.0,0.21684234]
[1762061958185,1.13776767,110500.0,110490.0,0.03583211]
[1762061958394,1.33776767,110500.0,110490.0,0.03583211]
[1762061959025,0.9476157,110500.0,110490.0,0.03583211]
[1762061959344,0.9719791,110500.0,110490.0,0.03583211]
[1762061960704,0.9476157,110500.0,110490.0,0.03583211]
[1762061961386,0.9476157,110500.0,110490.0,0.21684396]
[1762061961588,0.9476157,110500.0,110490.0,0.03583211]
[1762061962330,0.97197789,110500.0,110490.0,0.03583211]
[1762061962740,0.97197789,110500.0,110490.0,0.21684396]
[1762061963881,0.97197789,110500.0,110490.0,0.03583211]
[1762061964067,0.93950971,110500.0,110490.0,0.03583211]
[1762061967395,0.91514752,110500.0,110490.0,0.03583211]
[1762061968397,0.91514752,110500.0,110490.0,0.21684396]
[1762061968649,0.71514752,110500.0,110490.0,0.21684396]
[1762061969547,0.72934726,110500.0,110490.0,0.21684396]
[1762061970917,0.50650726,110500.0,110490.0,0.23292396]
[1762061971140,0.05547301,110500.0,110490.0,0.27027396]
[1762061971356,0.00466582,110500.0,110490.0,0.27027396]
[1762061971600,0.61911706,110510.0,110500.0,0.18099547]
[1762061971862,0.23363081,110510.0,110500.0,0.23442547]
[1762061972039,0.26981309,110510.0,110500.0,0.23442547]
[1762061972247,0.26981309,110510.0,110500.0,0.26163335]
[1762061972676,0.23363081,110510.0,110500.0,0.26163335]
[1762061972870,0.26981309,110510.0,110500.0,0.26163335]
[1762061973339,0.26981309,110510.0,110500.0,0.26563335]
[1762061973757,0.67517506,110510.0,110500.0,0.04367788]
[1762061973897,0.71595414,110510.0,110500.0,0.03120788]
[1762061974683,0.71595414,110510.0,110500.0,0.03320788]
[1762061977151,0.71595414,110510.0,110500.0,0.21420335]
[1762061978881,0.69208414,110510.0,110500.0,0.23028335]
[1762061981826,0.71595414,110510.0,110500.0,0.21420335]
[1762061988612,0.69208414,110510.0,110500.0,0.26763335]
[1762061988971,0.69208414,110510.0,110500.0,0.24275335]
[1762061989564,0.28672217,110510.0,110500.0,0.26763335]
[1762061989754,0.67687414,110510.0,110500.0,0.26763335]
[1762061990654,0.69208414,110510.0,110500.0,0.26763335]
[1762061992181,0.30193217,110510.0,110500.0,0.26763335]
[1762061992411,0.49208414,110510.0,110500.0,0.26763335]
[1762061992741,0.69208414,110510.0,110500.0,0.26763335]
[1762061994684,0.67687414,110510.0,110500.0,0.26763335]
[1762061994889,0.65996506,110510.0,110500.0,0.26763335]
[1762061995751,0.67687663,110510.0,110500.0,0.26763335]
[1762061996316,0.69208663,110510.0,110500.0,0.26763335]
[1762061997382,0.69208663,110510.0,110500.0,0.24275335]
[1762061998428,0.71631663,110510.0,110500.0,0.22667335]
[1762061998635,0.71631663,110510.0,110500.0,0.03320788]
[1762062001028,0.71631663,110510.0,110500.0,0.21420335]
[1762062004952,0.71631663,110510.0,110500.0,0.03320788]
[1762062005632,0.7163203,110510.0,110500.0,0.03320788]
[1762062008241,3.7163203,110510.0,110500.0,0.03320788]
[1762062008446,3.89729939,110510.0,110500.0,0.03320788]
[1762062009360,3.7163203,110510.0,110500.0,0.03320788]
[1762062009583,3.89729939,110510.0,110500.0,0.03320788]
[1762062009792,4.3271184,110510.0,110500.0,0.03320788]
[1762062009998,4.3281184,110510.0,110500.0,0.03320788]
[1762062010203,4.23829939,110510.0,110500.0,0.03320788]
[1762062011197,4.23729939,110510.0,110500.0,0.03320788]
[1762062011675,4.23829939,110510.0,110500.0,0.006]
[1762062012129,4.0563203,110510.0,110500.0,0.006]
[1762062012579,4.23729939,110510.0,110500.0,0.006]
[1762062012928,4.23829939,110510.0,110500.0,0.006]
[1762062013147,4.23729939,110510.0,110500.0,0.006]
[1762062013413,3.66616833,110510.0,110500.0,0.006]
[1762062013632,4.0563203,110510.0,110500.0,0.18699547]
[1762062014799,1.0563203,110510.0,110500.0,0.18699547]
[1762062015017,1.0320903,110510.0,110500.0,0.20365547]
[1762062015502,1.0320903,110510.0,110500.0,0.18699547]
[1762062015715,1.0563203,110510.0,110500.0,0.18699547]
[1762062017504,1.05623138,110510.0,110500.0,0.18699547]
[1762062024476,0.66616833,110510.0,110500.0,0.18699547]
[1762062024717,1.05623138,110510.0,110500.0,0.18699547]
[1762062026502,0.66616833,110510.0,110500.0,0.18699547]
[1762062026752,1.05623138,110510.0,110500.0,0.18699547]
[1762062028533,0.04108605,110510.0,110500.0,0.63005852]
[1762062028741,0.00481011,110510.0,110500.0,0.23999547]
[1762062028944,0.00481011,110510.0,110500.0,0.26720125]
[1762062030009,0.00014439,110510.0,110500.0,0.6572643]
[1762062031070,0.00014439,110510.0,110500.0,0.6532643]
[1762062031502,0.00014439,110510.0,110500.0,0.6592643]
[1762062031676,0.00014439,110510.0,110500.0,0.6572643]
[1762062032110,0.00014439,110510.0,110500.0,0.6672643]
[1762062036662,0.00014439,110510.0,110500.0,0.27720125]
[1762062036872,0.00014439,110510.0,110500.0,0.6672643]
[1762062038635,0.00014439,110510.0,110500.0,0.27720125]
[1762062038820,0.00014439,110510.0,110500.0,0.6672643]
[1762062040765,0.00014439,110510.0,110500.0,0.27720125]
[1762062040987,0.00014439,110510.0,110500.0,0.6672643]
[1762062056876,0.00014439,110510.0,110500.0,0.27720125]
[1762062057136,0.00014439,110510.0,110500.0,0.6672643]
[1762062062411,0.00014439,110510.0,110500.0,0.27720125]
[1762062064656,0.00014439,110510.0,110500.0,0.6672643]
[1762062068161,0.00014439,110510.0,110500.0,1.05732735]
[1762062068361,0.00014439,110510.0,110500.0,0.6672643]
[1762062068592,0.00014439,110510.0,110500.0,1.39732735]
[1762062068801,1e-08,110510.0,110500.0,1.7873904]
[1762062069019,1e-08,110510.0,110500.0,1.39832735]
[1762062070811,1e-08,110510.0,110500.0,1.38232735]
[1762062071028,1e-08,110510.0,110500.0,1.38732735]
[1762062071238,1e-08,110510.0,110500.0,1.38932735]
[1762062071454,1e-08,110510.0,110500.0,1.38232735]
[1762062071667,1e-08,110510.0,110500.0,0.60220125]
[1762062071882,1e-08,110510.0,110500.0,1.39932735]
[1762062076711,1e-08,110510.0,110500.0,1.79939039]
[1762062076891,1e-08,110510.0,110500.0,1.79839039]
[1762062077094,1e-08,110510.0,110500.0,2.19945343]
[1762062077355,1e-08,110510.0,110500.0,0.63920123]
[1762062077497,1e-08,110510.0,110500.0,1.41829003]
[1762062077695,1e-08,110510.0,110500.0,1.54985231]
[1762062078141,1e-08,110510.0,110500.0,1.61502208]
[1762062078344,1e-08,110510.0,110500.0,1.60302208]
[1762062078537,1e-08,110510.0,110500.0,1.61302208]
[1762062078942,1e-08,110510.0,110500.0,1.61802208]
[1762062080377,1e-08,110510.0,110500.0,1.55285231]
[1762062081158,1e-08,110510.0,110500.0,1.61802208]
[1762062082403,1e-08,110510.0,110500.0,1.62802207]
[1762062083222,1e-08,110510.0,110500.0,1.75682207]
[1762062083479,1e-08,110510.0,110500.0,1.76082207]
[1762062083676,1e-08,110510.0,110500.0,1.77282207]
[1762062084079,1e-08,110510.0,110500.0,1.76082207]
[1762062084282,1e-08,110510.0,110500.0,1.75682207]
[1762062084497,1e-08,110510.0,110500.0,1.76882207]
[1762062084705,1e-08,110510.0,110500.0,1.77482207]
[1762062087886,1e-08,110510.0,110500.0,1.76882207]
[1762062088521,1e-08,110510.0,110500.0,1.77082207]
[1762062089269,1e-08,110510.0,110500.0,1.73882209]
[1762062089494,1e-08,110510.0,110500.0,1.75382208]
[1762062090115,1e-08,110510.0,110500.0,1.74682208]
[1762062090897,0.42029185,110570.0,110560.0,0.18089725]
[1762062091110,0.42494892,110570.0,110560.0,0.18089725]
[1762062091307,0.46425892,110570.0,110560.0,0.18089725]
[1762062091946,0.48110816,110570.0,110560.0,0.18089725]
[1762062094485,0.44022802,110570.0,110560.0,0.18089725]
[1762062095500,0.4764103,110570.0,110550.0,0.19239953]
[1762062095719,0.3895444,110560.0,110550.0,0.19239953]
[1762062095924,0.02465,110560.0,110550.0,0.19239953]
[1762062096128,0.02465,110560.0,110550.0,0.20804953]
[1762062100822,0.04877,110560.0,110540.0,0.21962929]
[1762062101034,0.03358,110560.0,110550.0,0.18091361]
[1762062101231,0.4383144,110560.0,110550.0,0.18091361]
[1762062101436,0.47449668,110560.0,110550.0,0.18091361]
[1762062105442,0.08495228,110560.0,110550.0,0.18091361]
[1762062105705,0.47449668,110560.0,110550.0,0.18091361]
[1762062110818,0.47449668,110560.0,110540.0,0.19592929]
[1762062111029,0.4383144,110550.0,110540.0,0.19592929]
[1762062111246,0.4141944,110550.0,110540.0,0.19592929]
[1762062111457,0.02465,110550.0,110540.0,0.21157929]
[1762062112557,0.4383144,110550.0,110540.0,0.19592929]
[1762062112779,0.04877,110550.0,110540.0,0.19592929]
[1762062112992,0.02465,110550.0,110540.0,0.21157929]
[1762062115245,0.04564228,110560.0,110550.0,0.18091361]
[1762062115453,0.45930668,110560.0,110550.0,0.18091361]
[1762062115662,0.47449668,110560.0,110550.0,0.18091361]
[1762062120463,0.45037668,110560.0,110550.0,0.18091361]
[1762062120881,0.45037668,110560.0,110550.0,0.19659361]
[1762062121936,0.45037668,110560.0,110550.0,0.20831361]
[1762062124355,0.43518668,110560.0,110550.0,0.20831361]
[1762062124674,0.43518668,110560.0,110550.0,0.23114361]
[1762062125000,0.45086668,110560.0,110550.0,0.23114361]
[1762062125200,0.04564228,110560.0,110550.0,0.23114361]
[1762062125401,0.01137362,110570.0,110560.0,0.18089725]
[1762062125758,0.04271119,110570.0,110560.0,0.24921697]
[1762062125934,0.04271119,110570.0,110560.0,0.23112725]
[1762062126332,0.00652891,110570.0,110560.0,0.23112725]
[1762062126908,0.00191362,110570.0,110560.0,0.23112725]
[1762062130603,0.41659802,110570.0,110560.0,0.23112725]
[1762062131042,0.02705362,110570.0,110560.0,0.23112725]
[1762062131265,0.00191362,110570.0,110560.0,0.23112725]
[1762062136431,0.00191362,110570.0,110560.0,0.96067165]
[1762062137020,0.00191362,110570.0,110560.0,0.98785798]
[1762062137436,0.00191362,110570.0,110560.0,0.98773306]
[1762062138183,0.00191362,110570.0,110560.0,1.37715254]
[1762062138367,0.00191362,110570.0,110560.0,0.98773306]
[1762062148622,0.00191362,110570.0,110560.0,1.37715254]
[1762062148837,0.00191362,110570.0,110560.0,1.37815254]
[1762062149039,0.00191362,110570.0,110560.0,1.37715254]
[1762062149626,0.00191362,110570.0,110560.0,1.37815254]
[1762062150920,0.00191362,110570.0,110560.0,1.37715254]
[1762062151150,0.00191362,110570.0,110560.0,1.37815254]
[1762062151762,0.00191362,110570.0,110560.0,1.37715254]
[1762062151970,0.00191362,110570.0,110560.0,1.37815254]
[1762062152625,1e-08,110570.0,110560.0,1.37815254]
[1762062152764,1e-08,110570.0,110560.0,1.37715254]
[1762062153417,1e-08,110570.0,110560.0,1.37815254]
[1762062154305,1e-08,110570.0,110560.0,1.37715254]
[1762062154645,1e-08,110570.0,110560.0,1.37815254]
[1762062154854,1e-08,110570.0,110560.0,1.37715254]
[1762062155062,1e-08,110570.0,110560.0,1.37815254]
[1762062156846,1e-08,110570.0,110560.0,1.37715254]
[1762062157257,1e-08,110570.0,110560.0,1.37815254]
[1762062157669,1e-08,110570.0,110560.0,1.77757201]
[1762062157878,1e-08,110570.0,110560.0,1.38815253]
[1762062163422,1e-08,110570.0,110560.0,1.77757201]
[1762062163623,1e-08,110570.0,110560.0,1.84274178]
[1762062164479,1e-08,110570.0,110560.0,1.77757201]
[1762062165156,1e-08,110570.0,110560.0,1.84274178]
[1762062165374,1e-08,110570.0,110560.0,1.77757201]
[1762062166073,1e-08,110570.0,110560.0,1.38815253]
[1762062167099,1e-08,110570.0,110560.0,1.77757201]
[1762062167650,1e-08,110570.0,110560.0,1.38815253]
[1762062172954,1e-08,110570.0,110560.0,1.77757201]
[1762062173381,1e-08,110570.0,110560.0,1.786572]
[1762062173560,1e-08,110570.0,110560.0,1.787572]
[1762062174814,1e-08,110570.0,110560.0,1.85274177]
[1762062177417,1e-08,110570.0,110560.0,2.00154177]
[1762062179735,1e-08,110570.0,110560.0,1.61112229]
[1762062180057,1e-08,110570.0,110560.0,1.54695252]
[1762062180254,1e-08,110570.0,110560.0,1.61212229]
[1762062182563,1e-08,110570.0,110560.0,2.00154177]
[1762062183773,1e-08,110570.0,110560.0,1.936372]
[1762062186207,1e-08,110570.0,110560.0,2.01716162]
[1762062191305,1e-08,110570.0,110560.0,2.00716163]
[1762062191450,1e-08,110570.0,110560.0,2.01716162]
[1762062193897,1e-08,110570.0,110560.0,2.00716163]
[1762062194117,1e-08,110570.0,110560.0,2.01716162]
[1762062194702,1e-08,110570.0,110560.0,2.00716163]
[1762062194883,1e-08,110570.0,110560.0,2.01716162]
[1762062199456,1e-08,110570.0,110560.0,1.23812329]
[1762062201279,1e-08,110570.0,110560.0,1.23399168]
[1762062201887,1e-08,110570.0,110560.0,1.62321179]
[1762062202088,1e-08,110570.0,110560.0,1.71863179]
[1762062202290,1e-08,110570.0,110560.0,1.62321179]
[1762062206145,1e-08,110570.0,110560.0,1.65939407]
[1762062206528,0.0002,110620.0,110610.0,0.18081547]
[1762062206730,0.00068279,110620.0,110610.0,0.70407302]
[1762062206862,0.00068279,110620.0,110610.0,0.68599148]
[1762062207063,0.00178052,110620.0,110610.0,0.31999137]
[1762062207263,0.00178052,110620.0,110610.0,0.34716743]
[1762062209086,0.00178052,110620.0,110610.0,0.68716743]
[1762062209322,0.00178052,110620.0,110610.0,1.07638754]
[1762062211159,0.00178052,110620.0,110610.0,1.04921148]
[1762062216854,0.0002,110630.0,110620.0,0.52079913]
[1762062217071,0.00034472,110630.0,110620.0,0.96082924]
[1762062217271,0.00056419,110630.0,110620.0,0.96082924]
[1762062222487,0.00056419,110630.0,110620.0,0.57160913]
[1762062223464,0.00056419,110630.0,110620.0,0.96082924]
[1762062223808,0.00056419,110630.0,110620.0,0.98800163]
[1762062224280,0.00056419,110630.0,110620.0,0.98900163]
[1762062224997,0.00056419,110630.0,110620.0,0.98800163]
[1762062226452,0.00056419,110630.0,110620.0,0.98900163]
[1762062227309,0.00056419,110630.0,110620.0,0.98800163]
[1762062227694,0.00056419,110630.0,110620.0,0.98900163]
[1762062228513,0.00056419,110630.0,110620.0,0.98800163]
[1762062229986,0.00056419,110630.0,110620.0,0.98900163]
[1762062230574,0.00056419,110630.0,110620.0,0.98800163]
[1762062232048,0.00056419,110630.0,110620.0,0.98900163]
[1762062232252,0.00056419,110630.0,110620.0,0.98800163]
[1762062234975,0.00056419,110630.0,110620.0,0.57160913]
[1762062242472,0.3897843,110630.0,110620.0,0.23160913]
[1762062242674,0.00056419,110630.0,110620.0,0.23160913]
[1762062250908,0.00056419,110630.0,110620.0,0.62082924]
[1762062251232,0.00056419,110630.0,110620.0,0.23160913]
[1762062259368,0.00056419,110630.0,110620.0,0.62064174]
[1762062262206,0.00056419,110630.0,110620.0,0.23160913]
[1762062262415,0.00056419,110630.0,110620.0,0.62064174]
[1762062276105,0.0002,110640.0,110630.0,0.18078278]
[1762062276324,0.0002,110640.0,110630.0,0.73028956]
[1762062276518,0.0002,110640.0,110630.0,0.71221129]
[1762062276655,0.00041945,110640.0,110630.0,0.71221129]
[1762062277505,0.00041945,110640.0,110630.0,0.73938243]
[1762062280754,0.00041945,110640.0,110630.0,0.35034982]
[1762062281078,0.00041945,110640.0,110630.0,0.73938243]
[1762062285785,0.00041945,110640.0,110630.0,0.74038243]
[1762062286603,0.00041945,110640.0,110630.0,0.73938243]
[1762062288779,0.00041945,110640.0,110630.0,0.35034982]
[1762062289022,0.00041945,110640.0,110630.0,0.73938243]
[1762062289223,0.00041945,110640.0,110630.0,0.74038243]
[1762062290020,0.00041945,110640.0,110630.0,0.73938243]
[1762062290223,0.00041945,110640.0,110630.0,0.74038243]
[1762062290449,0.00041945,110640.0,110630.0,0.73938243]
[1762062293009,0.00041945,110640.0,110630.0,0.74038243]
[1762062293259,1e-08,110640.0,110630.0,1.46841504]
[1762062293551,1e-08,110640.0,110630.0,1.46941504]
[1762062294526,1e-08,110640.0,110630.0,1.07938243]
[1762062298138,1e-08,110640.0,110630.0,1.46841504]
[1762062298338,1e-08,110640.0,110630.0,1.46941504]
[1762062298571,1e-08,110640.0,110630.0,1.07938243]
[1762062298780,1e-08,110640.0,110630.0,1.08038243]
[1762062298982,1e-08,110640.0,110630.0,1.07938243]
[1762062299976,1e-08,110640.0,110630.0,1.46941504]
[1762062301448,1e-08,110640.0,110630.0,1.08038243]
[1762062301857,1e-08,110640.0,110630.0,1.07938243]
[1762062303563,1e-08,110640.0,110630.0,1.46841504]
[1762062303769,1e-08,110640.0,110630.0,1.46941504]
[1762062303949,1e-08,110640.0,110630.0,1.07938243]
[1762062304183,1e-08,110640.0,110630.0,1.08038243]
[1762062304364,1e-08,110640.0,110630.0,1.46941504]
[1762062312706,1e-08,110640.0,110630.0,1.47941503]
[1762062313287,1e-08,110640.0,110630.0,1.88769548]
[1762062313493,1e-08,110640.0,110630.0,1.49866287]
[1762062313696,1e-08,110640.0,110630.0,1.88769548]
[1762062314160,1e-08,110640.0,110630.0,1.49866287]
[1762062314783,1e-08,110640.0,110630.0,1.88769548]
[1762062314997,1e-08,110640.0,110630.0,1.49866287]
[1762062315207,1e-08,110640.0,110630.0,1.64746287]
[1762062316030,1e-08,110640.0,110630.0,1.49866287]
[1762062320376,1e-08,110640.0,110630.0,1.47941503]
[1762062320589,1e-08,110640.0,110630.0,1.09038242]
[1762062321022,1e-08,110640.0,110630.0,1.63821502]
[1762062321404,1e-08,110640.0,110630.0,1.24897831]
[1762062328546,1e-08,110640.0,110630.0,1.31409442]